[Event "Early-Titled-Tuesday-Blitz-October-24-2023"]
[Site "Chess.com"]
[Date "2023.10.24"]
[Round "4"]
[White "verrbaa"]
[Black "VOneChess"]
[Result "1/2-1/2"]
[WhiteElo "2447"]
[BlackElo "2266"]
[TimeControl "180+1"]
[EndTime "8:37:47 PDT"]
[Termination "Game drawn by repetition"]

1. e4 {[%clk 0:02:59.8]} 1... d5 {[%clk 0:02:57.9]} 2. exd5 {[%clk 0:02:59.7]}
2... Nf6 {[%clk 0:02:58.1]} 3. d4 {[%clk 0:02:59.2]} 3... Bg4 {[%clk 0:02:58]}
4. Nf3 {[%clk 0:02:59]} 4... Qxd5 {[%clk 0:02:57.3]} 5. Be2 {[%clk 0:02:56.1]}
5... Nc6 {[%clk 0:02:52.7]} 6. c4 {[%clk 0:02:55.1]} 6... Qh5 {[%clk 0:02:45.8]}
7. Nc3 {[%clk 0:02:18.9]} 7... O-O-O {[%clk 0:02:45.3]} 8. Be3 {[%clk
0:02:18.2]} 8... e5 {[%clk 0:02:42.4]} 9. d5 {[%clk 0:02:17.8]} 9... e4 {[%clk
0:02:42.5]} 10. Nd2 {[%clk 0:02:05.2]} 10... Ne5 {[%clk 0:02:37.5]} 11. Ndxe4
{[%clk 0:01:44.6]} 11... Nxe4 {[%clk 0:02:19.1]} 12. Bxg4+ {[%clk 0:01:40.1]}
12... Nxg4 {[%clk 0:02:12.1]} 13. Nxe4 {[%clk 0:01:40.1]} 13... Bb4+ {[%clk
0:02:10.9]} 14. Nc3 {[%clk 0:01:29.2]} 14... Rhe8 {[%clk 0:01:50.6]} 15. h3
{[%clk 0:01:06]} 15... Rxe3+ {[%clk 0:01:12.6]} 16. fxe3 {[%clk 0:01:05.5]}
16... Qh4+ {[%clk 0:01:13.4]} 17. Kd2 {[%clk 0:01:05.6]} 17... Ne5 {[%clk
0:01:13.7]} 18. Qe2 {[%clk 0:00:49.6]} 18... Nxc4+ {[%clk 0:01:09.6]} 19. Kc2
{[%clk 0:00:50]} 19... Bxc3 {[%clk 0:00:18.8]} 20. Kxc3 {[%clk 0:00:47.8]} 20...
Qf6+ {[%clk 0:00:09]} 21. Kb3 {[%clk 0:00:26.9]} 21... Qb6+ {[%clk 0:00:08.4]}
22. Kc3 {[%clk 0:00:24.4]} 22... Rxd5 {[%clk 0:00:08.4]} 23. b4 {[%clk
0:00:17.4]} 23... Nxe3 {[%clk 0:00:05.9]} 24. Rhe1 {[%clk 0:00:09.2]} 24... Qd4+
{[%clk 0:00:05.1]} 25. Kb3 {[%clk 0:00:09.6]} 25... Re5 {[%clk 0:00:03.3]} 26.
Rad1 {[%clk 0:00:06.4]} 26... Nxd1 {[%clk 0:00:03.5]} 27. Qxe5 {[%clk
0:00:06.6]} 27... Qd3+ {[%clk 0:00:04]} 28. Ka4 {[%clk 0:00:05.7]} 28... Qa6+
{[%clk 0:00:03]} 29. Kb3 {[%clk 0:00:05.4]} 29... Qd3+ {[%clk 0:00:03.7]} 30.
Ka4 {[%clk 0:00:05.4]} 30... Qa6+ {[%clk 0:00:03.1]} 31. Kb3 {[%clk 0:00:05.6]}
31... Qd3+ {[%clk 0:00:03.2]} 1/2-1/2

[Event "Early-Titled-Tuesday-Blitz-October-24-2023"]
[Site "Chess.com"]
[Date "2023.10.24"]
[Round "4"]
[White "scarabee43"]
[Black "OparinGrigoriy"]
[Result "0-1"]
[WhiteElo "2800"]
[BlackElo "2987"]
[TimeControl "180+1"]
[EndTime "8:37:48 PDT"]
[Termination "OparinGrigoriy won by resignation"]

1. d4 {[%clk 0:03:00.9]} 1... Nf6 {[%clk 0:02:59.6]} 2. c4 {[%clk 0:03:01.2]}
2... e6 {[%clk 0:03:00.1]} 3. Nf3 {[%clk 0:03:01.2]} 3... b6 {[%clk 0:03:00.4]}
4. g3 {[%clk 0:03:00.2]} 4... Ba6 {[%clk 0:03:00.6]} 5. Qc2 {[%clk 0:02:58.6]}
5... c5 {[%clk 0:03:00]} 6. Bg2 {[%clk 0:02:58.5]} 6... Bb7 {[%clk 0:02:59]} 7.
dxc5 {[%clk 0:02:55.9]} 7... bxc5 {[%clk 0:02:56.2]} 8. Nc3 {[%clk 0:02:55.8]}
8... Be7 {[%clk 0:02:55]} 9. O-O {[%clk 0:02:55.9]} 9... O-O {[%clk 0:02:55.7]}
10. Bf4 {[%clk 0:02:54.1]} 10... d5 {[%clk 0:02:44.9]} 11. cxd5 {[%clk
0:02:51.7]} 11... exd5 {[%clk 0:02:45.8]} 12. Rfd1 {[%clk 0:02:49.8]} 12... Na6
{[%clk 0:02:43]} 13. a3 {[%clk 0:02:48.3]} 13... Re8 {[%clk 0:02:29.6]} 14. Rac1
{[%clk 0:02:45.3]} 14... h6 {[%clk 0:02:15.3]} 15. h4 {[%clk 0:02:27]} 15... Qb6
{[%clk 0:02:13.3]} 16. e3 {[%clk 0:02:25.7]} 16... Rac8 {[%clk 0:02:10.7]} 17.
Ne5 {[%clk 0:02:13.7]} 17... Red8 {[%clk 0:01:53.4]} 18. Na4 {[%clk 0:01:36.5]}
18... Qe6 {[%clk 0:01:52.8]} 19. Kh2 {[%clk 0:01:33.9]} 19... h5 {[%clk
0:01:46.3]} 20. f3 {[%clk 0:01:32.2]} 20... Bd6 {[%clk 0:01:32.6]} 21. Bh3
{[%clk 0:01:32.3]} 21... Qe8 {[%clk 0:01:33.1]} 22. Bxc8 {[%clk 0:01:30.4]}
22... Rxc8 {[%clk 0:01:32.6]} 23. Nd3 {[%clk 0:01:25.8]} 23... Be7 {[%clk
0:01:19.6]} 24. Bg5 {[%clk 0:00:53.5]} 24... d4 {[%clk 0:01:19.8]} 25. e4 {[%clk
0:00:51.3]} 25... c4 {[%clk 0:01:20.3]} 26. b3 {[%clk 0:00:30.2]} 26... cxd3
{[%clk 0:01:17.5]} 27. Qxd3 {[%clk 0:00:30.5]} 27... Rd8 {[%clk 0:01:11.7]} 28.
Ra1 {[%clk 0:00:25.4]} 28... Nc7 {[%clk 0:01:04.4]} 29. Nb2 {[%clk 0:00:23]}
29... Ne6 {[%clk 0:01:04.8]} 30. Bd2 {[%clk 0:00:22.8]} 30... Nc5 {[%clk
0:00:58]} 31. Qc2 {[%clk 0:00:20.7]} 31... Ncxe4 {[%clk 0:00:58.2]} 32. fxe4
{[%clk 0:00:20.6]} 32... Bxe4 {[%clk 0:00:59.1]} 33. Qc4 {[%clk 0:00:19.6]}
33... Ng4+ {[%clk 0:00:55.5]} 34. Kg1 {[%clk 0:00:19.6]} 34... Bd6 {[%clk
0:00:55.1]} 35. Be1 {[%clk 0:00:06.9]} 35... Ne3 {[%clk 0:00:52.4]} 36. Qxd4
{[%clk 0:00:07.4]} 36... Nxd1 {[%clk 0:00:47]} 37. Rxd1 {[%clk 0:00:08.1]} 37...
Bc7 {[%clk 0:00:47.6]} 38. Qc3 {[%clk 0:00:06.5]} 38... Rc8 {[%clk 0:00:40.5]}
39. Qd2 {[%clk 0:00:06]} 39... Qe6 {[%clk 0:00:37.5]} 40. Bf2 {[%clk 0:00:06.2]}
40... Qxb3 {[%clk 0:00:37.1]} 41. Rc1 {[%clk 0:00:05.5]} 41... Qf3 {[%clk
0:00:35.1]} 42. Kf1 {[%clk 0:00:05.2]} 42... Rd8 {[%clk 0:00:27.1]} 43. Qe3
{[%clk 0:00:05.5]} 43... Qg2+ {[%clk 0:00:26.7]} 44. Ke2 {[%clk 0:00:06.2]}
44... Bb6 {[%clk 0:00:27.3]} 45. Qf4 {[%clk 0:00:05.9]} 45... Bxf2 {[%clk
0:00:26.9]} 46. Qxf2 {[%clk 0:00:06.3]} 46... Rd2+ {[%clk 0:00:27.6]} 0-1

[Event "Early-Titled-Tuesday-Blitz-October-24-2023"]
[Site "Chess.com"]
[Date "2023.10.24"]
[Round "4"]
[White "sjoerd893"]
[Black "dawid498"]
[Result "1-0"]
[WhiteElo "2532"]
[BlackElo "2682"]
[TimeControl "180+1"]
[EndTime "8:37:48 PDT"]
[Termination "sjoerd893 won by checkmate"]

1. e4 {[%clk 0:03:00.9]} 1... c5 {[%clk 0:02:59.1]} 2. Nf3 {[%clk 0:03:00.6]}
2... e6 {[%clk 0:02:59.6]} 3. d4 {[%clk 0:03:00.5]} 3... cxd4 {[%clk 0:03:00.5]}
4. Nxd4 {[%clk 0:03:00.9]} 4... Nc6 {[%clk 0:03:01.2]} 5. Nc3 {[%clk 0:02:59.5]}
5... Qc7 {[%clk 0:03:01.7]} 6. Be3 {[%clk 0:02:59.1]} 6... a6 {[%clk 0:03:02.1]}
7. f3 {[%clk 0:02:58.4]} 7... Nf6 {[%clk 0:03:02.6]} 8. Qd2 {[%clk 0:02:53.1]}
8... Be7 {[%clk 0:03:02.7]} 9. O-O-O {[%clk 0:02:52.9]} 9... O-O {[%clk
0:03:02.9]} 10. g4 {[%clk 0:02:52.8]} 10... b5 {[%clk 0:02:56]} 11. Nxc6 {[%clk
0:02:49.4]} 11... dxc6 {[%clk 0:02:47.3]} 12. g5 {[%clk 0:02:44.7]} 12... Nh5
{[%clk 0:02:37.4]} 13. Qf2 {[%clk 0:02:35.1]} 13... e5 {[%clk 0:01:58.6]} 14. h4
{[%clk 0:02:25.9]} 14... Be6 {[%clk 0:01:47.8]} 15. Bb6 {[%clk 0:02:21.1]} 15...
Qb7 {[%clk 0:01:36.9]} 16. Bh3 {[%clk 0:01:32.1]} 16... Bxh3 {[%clk 0:00:52.8]}
17. Rxh3 {[%clk 0:01:30.9]} 17... Nf4 {[%clk 0:00:53.7]} 18. Rh2 {[%clk
0:01:24]} 18... Rac8 {[%clk 0:00:42.3]} 19. Be3 {[%clk 0:01:21.8]} 19... Ne6
{[%clk 0:00:33.6]} 20. Qg3 {[%clk 0:01:13.6]} 20... b4 {[%clk 0:00:25.9]} 21.
Ne2 {[%clk 0:01:07.6]} 21... Qb5 {[%clk 0:00:25.5]} 22. h5 {[%clk 0:01:03.5]}
22... a5 {[%clk 0:00:15.9]} 23. g6 {[%clk 0:00:56.5]} 23... fxg6 {[%clk
0:00:16.3]} 24. hxg6 {[%clk 0:00:56.3]} 24... h6 {[%clk 0:00:16.8]} 25. Qg4
{[%clk 0:00:19.4]} 25... Rf6 {[%clk 0:00:15.1]} 26. Ng3 {[%clk 0:00:15.2]} 26...
Qc4 {[%clk 0:00:11.5]} 27. Nf5 {[%clk 0:00:13.2]} 27... Bc5 {[%clk 0:00:08.1]}
28. Bxc5 {[%clk 0:00:12.1]} 28... Qxc5 {[%clk 0:00:08.7]} 29. Kb1 {[%clk
0:00:05]} 29... Rcf8 {[%clk 0:00:06.7]} 30. Nxh6+ {[%clk 0:00:04.2]} 30... gxh6
{[%clk 0:00:06.9]} 31. Rxh6 {[%clk 0:00:05.1]} 31... Qe7 {[%clk 0:00:05.9]} 32.
Rdh1 {[%clk 0:00:03.1]} 32... Qg7 {[%clk 0:00:02.2]} 33. Rh8+ {[%clk 0:00:03.3]}
33... Qxh8 {[%clk 0:00:02.3]} 34. Rxh8+ {[%clk 0:00:04.2]} 34... Kxh8 {[%clk
0:00:02.9]} 35. Qh5+ {[%clk 0:00:04.9]} 35... Kg7 {[%clk 0:00:03.3]} 36. Qh7#
{[%clk 0:00:05.3]} 1-0

[Event "Early-Titled-Tuesday-Blitz-October-24-2023"]
[Site "Chess.com"]
[Date "2023.10.24"]
[Round "4"]
[White "IMRosen"]
[Black "JimDiGrease"]
[Result "0-1"]
[WhiteElo "2567"]
[BlackElo "2879"]
[TimeControl "180+1"]
[EndTime "8:37:53 PDT"]
[Termination "JimDiGrease won on time"]

1. e4 {[%clk 0:03:00.9]} 1... c5 {[%clk 0:03:00.2]} 2. Nc3 {[%clk 0:02:59.9]}
2... e6 {[%clk 0:02:58.3]} 3. Nf3 {[%clk 0:02:58.8]} 3... Nc6 {[%clk 0:02:58.5]}
4. d4 {[%clk 0:02:59.3]} 4... cxd4 {[%clk 0:02:59]} 5. Nxd4 {[%clk 0:03:00.2]}
5... Nf6 {[%clk 0:02:59.6]} 6. a3 {[%clk 0:02:56.7]} 6... d6 {[%clk 0:02:50.1]}
7. g3 {[%clk 0:02:53.7]} 7... Be7 {[%clk 0:02:35.1]} 8. Bg2 {[%clk 0:02:53.6]}
8... Nxd4 {[%clk 0:02:12.9]} 9. Qxd4 {[%clk 0:02:53.3]} 9... a6 {[%clk
0:02:11.7]} 10. O-O {[%clk 0:02:53]} 10... O-O {[%clk 0:02:12.3]} 11. h3 {[%clk
0:02:52.7]} 11... Qc7 {[%clk 0:02:12.2]} 12. Be3 {[%clk 0:02:51.1]} 12... Bd7
{[%clk 0:02:12.2]} 13. f4 {[%clk 0:02:26.5]} 13... Bc6 {[%clk 0:02:07.4]} 14.
Rad1 {[%clk 0:02:25]} 14... Rfd8 {[%clk 0:02:03.5]} 15. Kh2 {[%clk 0:02:24.5]}
15... Nd7 {[%clk 0:01:48.1]} 16. Qd2 {[%clk 0:02:21.5]} 16... b5 {[%clk
0:01:43.5]} 17. Qf2 {[%clk 0:02:18.4]} 17... Rac8 {[%clk 0:01:35.2]} 18. Rd2
{[%clk 0:02:12.1]} 18... a5 {[%clk 0:01:35]} 19. Rfd1 {[%clk 0:02:10.6]} 19...
b4 {[%clk 0:01:35.2]} 20. axb4 {[%clk 0:02:11.3]} 20... axb4 {[%clk 0:01:36.1]}
21. Ne2 {[%clk 0:02:12]} 21... Qb7 {[%clk 0:01:33.7]} 22. Rd4 {[%clk 0:01:51.3]}
22... e5 {[%clk 0:01:00.2]} 23. Rc4 {[%clk 0:01:50.8]} 23... Bb5 {[%clk
0:00:44.6]} 24. Rxc8 {[%clk 0:01:02]} 24... Rxc8 {[%clk 0:00:45.5]} 25. c3
{[%clk 0:01:02.7]} 25... Bxe2 {[%clk 0:00:36.5]} 26. Qxe2 {[%clk 0:01:03.1]}
26... bxc3 {[%clk 0:00:37.4]} 27. bxc3 {[%clk 0:01:02.9]} 27... Rxc3 {[%clk
0:00:38.3]} 28. Qd2 {[%clk 0:00:45.1]} 28... Rb3 {[%clk 0:00:34.8]} 29. Rc1
{[%clk 0:00:38.4]} 29... h6 {[%clk 0:00:30.9]} 30. Rc2 {[%clk 0:00:36.9]} 30...
Nf6 {[%clk 0:00:25.9]} 31. Rc4 {[%clk 0:00:21]} 31... Rb2 {[%clk 0:00:25.1]} 32.
Qd3 {[%clk 0:00:18]} 32... Qa6 {[%clk 0:00:20]} 33. fxe5 {[%clk 0:00:06.2]}
33... dxe5 {[%clk 0:00:20.9]} 34. Bc1 {[%clk 0:00:04.1]} 34... Rf2 {[%clk
0:00:18.2]} 35. Be3 {[%clk 0:00:03.6]} 35... Rb2 {[%clk 0:00:18.2]} 36. Bc1
{[%clk 0:00:04]} 36... Ra2 {[%clk 0:00:18.9]} 37. Qc3 {[%clk 0:00:03.3]} 37...
Kh7 {[%clk 0:00:13.5]} 38. Rc7 {[%clk 0:00:02.4]} 38... Qe2 {[%clk 0:00:13.4]}
0-1

[Event "Early-Titled-Tuesday-Blitz-October-24-2023"]
[Site "Chess.com"]
[Date "2023.10.24"]
[Round "4"]
[White "Sanan_Sjugirov"]
[Black "ozates"]
[Result "1/2-1/2"]
[WhiteElo "2942"]
[BlackElo "2735"]
[TimeControl "180+1"]
[EndTime "8:37:55 PDT"]
[Termination "Game drawn by repetition"]

1. d4 {[%clk 0:03:00.9]} 1... Nf6 {[%clk 0:02:59.8]} 2. c4 {[%clk 0:03:01.6]}
2... e6 {[%clk 0:03:00.1]} 3. Nf3 {[%clk 0:03:02.2]} 3... d5 {[%clk 0:03:00.3]}
4. Nc3 {[%clk 0:03:02.9]} 4... c5 {[%clk 0:03:00.3]} 5. e3 {[%clk 0:03:01.3]}
5... Nc6 {[%clk 0:02:55.7]} 6. a3 {[%clk 0:03:00.7]} 6... cxd4 {[%clk
0:02:53.1]} 7. exd4 {[%clk 0:02:59.6]} 7... Be7 {[%clk 0:02:46.9]} 8. c5 {[%clk
0:02:57.4]} 8... O-O {[%clk 0:02:45]} 9. Bd3 {[%clk 0:02:55.2]} 9... Nd7 {[%clk
0:02:43.7]} 10. O-O {[%clk 0:02:49.9]} 10... Bf6 {[%clk 0:02:42.8]} 11. Bb5
{[%clk 0:02:36.2]} 11... Qc7 {[%clk 0:02:21.6]} 12. Re1 {[%clk 0:02:29]} 12...
a6 {[%clk 0:02:17]} 13. Bxc6 {[%clk 0:02:22.6]} 13... bxc6 {[%clk 0:02:17.2]}
14. Bg5 {[%clk 0:02:14.6]} 14... Bxg5 {[%clk 0:02:01.3]} 15. Nxg5 {[%clk
0:02:15.5]} 15... e5 {[%clk 0:02:01.6]} 16. dxe5 {[%clk 0:02:11]} 16... Nxe5
{[%clk 0:02:01]} 17. h3 {[%clk 0:01:34.1]} 17... Bf5 {[%clk 0:01:53.5]} 18. Qd4
{[%clk 0:00:57.9]} 18... Rfe8 {[%clk 0:01:31.7]} 19. Qf4 {[%clk 0:00:51.1]}
19... Bg6 {[%clk 0:01:23.2]} 20. Kh1 {[%clk 0:00:19.6]} 20... Re7 {[%clk
0:01:03]} 21. Nf3 {[%clk 0:00:14.6]} 21... Rae8 {[%clk 0:00:54.5]} 22. Re3
{[%clk 0:00:13.1]} 22... f6 {[%clk 0:00:40.5]} 23. Rae1 {[%clk 0:00:12.7]} 23...
Kf8 {[%clk 0:00:25.7]} 24. Nd4 {[%clk 0:00:04.8]} 24... Qd7 {[%clk 0:00:20]} 25.
Qg3 {[%clk 0:00:02.4]} 25... Nc4 {[%clk 0:00:14.4]} 26. Rxe7 {[%clk 0:00:02.6]}
26... Rxe7 {[%clk 0:00:15.3]} 27. Rxe7 {[%clk 0:00:01.5]} 27... Qxe7 {[%clk
0:00:15.3]} 28. Nxc6 {[%clk 0:00:01.8]} 28... Qxc5 {[%clk 0:00:06.7]} 29. Qb8+
{[%clk 0:00:01.9]} 29... Be8 {[%clk 0:00:06.8]} 30. Nb4 {[%clk 0:00:01.4]} 30...
Qxf2 {[%clk 0:00:06.9]} 31. Nbxd5 {[%clk 0:00:01.7]} 31... Qe1+ {[%clk
0:00:06.8]} 32. Kh2 {[%clk 0:00:02.1]} 32... Nd2 {[%clk 0:00:06.6]} 33. Qd6+
{[%clk 0:00:01.9]} 33... Kf7 {[%clk 0:00:06.9]} 34. Qc7+ {[%clk 0:00:02.2]}
34... Kf8 {[%clk 0:00:06.8]} 35. Qc5+ {[%clk 0:00:02.3]} 35... Kf7 {[%clk
0:00:06.8]} 36. Qc7+ {[%clk 0:00:02.5]} 36... Kf8 {[%clk 0:00:07.2]} 37. Qc5+
{[%clk 0:00:02.1]} 37... Kf7 {[%clk 0:00:07.7]} 38. Qc7+ {[%clk 0:00:02.4]}
1/2-1/2

[Event "Early-Titled-Tuesday-Blitz-October-24-2023"]
[Site "Chess.com"]
[Date "2023.10.24"]
[Round "4"]
[White "AnaKuchava"]
[Black "Maluco_do_Natal_00"]
[Result "0-1"]
[WhiteElo "2229"]
[BlackElo "2008"]
[TimeControl "180+1"]
[EndTime "8:37:55 PDT"]
[Termination "Maluco_do_Natal_00 won on time"]

1. d4 {[%clk 0:03:00.9]} 1... d5 {[%clk 0:02:59.8]} 2. Nf3 {[%clk 0:03:00.6]}
2... Nf6 {[%clk 0:02:57.8]} 3. c4 {[%clk 0:02:57.9]} 3... c6 {[%clk 0:02:57.8]}
4. Qb3 {[%clk 0:02:54.9]} 4... Nbd7 {[%clk 0:02:48.5]} 5. Bg5 {[%clk 0:02:49.7]}
5... Qb6 {[%clk 0:02:46.8]} 6. c5 {[%clk 0:02:47.1]} 6... Qxb3 {[%clk
0:02:40.3]} 7. axb3 {[%clk 0:02:48]} 7... Ne4 {[%clk 0:02:37.4]} 8. Bf4 {[%clk
0:02:46.6]} 8... h6 {[%clk 0:02:27.7]} 9. Nc3 {[%clk 0:02:39.2]} 9... g5 {[%clk
0:02:25.7]} 10. Bg3 {[%clk 0:02:38]} 10... Nxg3 {[%clk 0:02:18]} 11. hxg3 {[%clk
0:02:37.6]} 11... Bg7 {[%clk 0:02:16.4]} 12. b4 {[%clk 0:02:37.4]} 12... e5
{[%clk 0:02:05.7]} 13. e3 {[%clk 0:02:25.2]} 13... g4 {[%clk 0:02:00.2]} 14. Nh4
{[%clk 0:02:20.3]} 14... exd4 {[%clk 0:01:47.6]} 15. exd4 {[%clk 0:02:19.7]}
15... Bxd4 {[%clk 0:01:32.3]} 16. Nf5 {[%clk 0:02:11.2]} 16... Bf6 {[%clk
0:01:21.9]} 17. Nd6+ {[%clk 0:01:36]} 17... Kf8 {[%clk 0:01:14.2]} 18. Be2
{[%clk 0:01:31.4]} 18... Ne5 {[%clk 0:01:10.3]} 19. b5 {[%clk 0:01:15.5]} 19...
Kg7 {[%clk 0:00:47.9]} 20. bxc6 {[%clk 0:01:05.4]} 20... bxc6 {[%clk 0:00:45.7]}
21. Rh5 {[%clk 0:00:48]} 21... Kg6 {[%clk 0:00:38]} 22. Rh1 {[%clk 0:00:40.3]}
22... h5 {[%clk 0:00:30.8]} 23. O-O-O {[%clk 0:00:24.4]} 23... Rd8 {[%clk
0:00:15.8]} 24. Rhe1 {[%clk 0:00:15.3]} 24... Bg5+ {[%clk 0:00:13.3]} 25. Kb1
{[%clk 0:00:13.5]} 25... Bf6 {[%clk 0:00:11.4]} 26. Kc2 {[%clk 0:00:12.1]} 26...
Nd7 {[%clk 0:00:10.6]} 27. Bd3+ {[%clk 0:00:11.5]} 27... Kg7 {[%clk 0:00:09.6]}
28. b4 {[%clk 0:00:10.9]} 28... a5 {[%clk 0:00:09.1]} 29. Nf5+ {[%clk
0:00:09.9]} 29... Kf8 {[%clk 0:00:08.7]} 30. b5 {[%clk 0:00:09.2]} 30... Nxc5
{[%clk 0:00:08.1]} 31. bxc6 {[%clk 0:00:09.3]} 31... Nxd3 {[%clk 0:00:08.2]} 32.
Kxd3 {[%clk 0:00:07]} 32... Bxf5+ {[%clk 0:00:08.3]} 33. Kd2 {[%clk 0:00:06.9]}
33... Rac8 {[%clk 0:00:07.8]} 34. Rc1 {[%clk 0:00:03.3]} 34... Bg5+ {[%clk
0:00:07.4]} 35. Ke2 {[%clk 0:00:02.8]} 35... Bxc1 {[%clk 0:00:06.8]} 36. Rxc1
{[%clk 0:00:03.7]} 36... Rxc6 {[%clk 0:00:07]} 0-1

[Event "Early-Titled-Tuesday-Blitz-October-24-2023"]
[Site "Chess.com"]
[Date "2023.10.24"]
[Round "4"]
[White "Grandmaster1369"]
[Black "Beca95"]
[Result "1-0"]
[WhiteElo "2804"]
[BlackElo "2931"]
[TimeControl "180+1"]
[EndTime "8:37:57 PDT"]
[Termination "Grandmaster1369 won on time"]

1. e4 {[%clk 0:02:58.7]} 1... c5 {[%clk 0:02:58.8]} 2. Nc3 {[%clk 0:02:58.3]}
2... a6 {[%clk 0:02:57.5]} 3. g3 {[%clk 0:02:54.3]} 3... b5 {[%clk 0:02:57]} 4.
Bg2 {[%clk 0:02:53.6]} 4... Bb7 {[%clk 0:02:57.6]} 5. d3 {[%clk 0:02:53.9]} 5...
e6 {[%clk 0:02:53.7]} 6. Nh3 {[%clk 0:02:53.1]} 6... Nc6 {[%clk 0:02:51.1]} 7.
O-O {[%clk 0:02:50.8]} 7... Nd4 {[%clk 0:02:36.5]} 8. f4 {[%clk 0:02:48.6]} 8...
Ne7 {[%clk 0:02:36.6]} 9. Be3 {[%clk 0:02:39]} 9... Nec6 {[%clk 0:02:25.6]} 10.
f5 {[%clk 0:02:35.4]} 10... Be7 {[%clk 0:02:22.2]} 11. Rf2 {[%clk 0:02:09.1]}
11... Ne5 {[%clk 0:02:18.4]} 12. g4 {[%clk 0:02:00.9]} 12... h6 {[%clk
0:02:16.7]} 13. Nf4 {[%clk 0:01:59.3]} 13... Bh4 {[%clk 0:02:15.1]} 14. Rf1
{[%clk 0:01:58.8]} 14... Bg5 {[%clk 0:02:13.6]} 15. Qd2 {[%clk 0:01:53]} 15...
Qe7 {[%clk 0:02:11.9]} 16. h3 {[%clk 0:01:50]} 16... d6 {[%clk 0:02:05.5]} 17.
Nh5 {[%clk 0:01:50.1]} 17... Rg8 {[%clk 0:02:01]} 18. f6 {[%clk 0:01:39.3]}
18... gxf6 {[%clk 0:01:46.4]} 19. Bxg5 {[%clk 0:01:38.3]} 19... Rxg5 {[%clk
0:01:47.1]} 20. Nxf6+ {[%clk 0:01:38.1]} 20... Kd8 {[%clk 0:01:47.7]} 21. Ne2
{[%clk 0:01:31.7]} 21... Nxe2+ {[%clk 0:01:39.6]} 22. Qxe2 {[%clk 0:01:32.6]}
22... Kc7 {[%clk 0:01:12.1]} 23. Rf2 {[%clk 0:01:30.9]} 23... Rh8 {[%clk
0:01:06.1]} 24. Raf1 {[%clk 0:01:27.2]} 24... Kb8 {[%clk 0:01:01]} 25. c3 {[%clk
0:01:27.1]} 25... c4 {[%clk 0:01:00.2]} 26. d4 {[%clk 0:01:27.2]} 26... Nd3
{[%clk 0:01:00.4]} 27. Rf3 {[%clk 0:01:27.3]} 27... Qc7 {[%clk 0:00:58.8]} 28.
b3 {[%clk 0:01:25.5]} 28... d5 {[%clk 0:00:53.2]} 29. e5 {[%clk 0:01:23.2]}
29... Rg6 {[%clk 0:00:51.9]} 30. Nh5 {[%clk 0:01:21.6]} 30... Rh7 {[%clk
0:00:51.6]} 31. Nf6 {[%clk 0:01:19.2]} 31... Rhg7 {[%clk 0:00:51.1]} 32. Ne8
{[%clk 0:01:19.6]} 32... Qe7 {[%clk 0:00:50.5]} 33. Nxg7 {[%clk 0:01:19.8]}
33... Rxg7 {[%clk 0:00:51.4]} 34. bxc4 {[%clk 0:01:18.9]} 34... dxc4 {[%clk
0:00:50.9]} 35. Rf6 {[%clk 0:01:19.4]} 35... h5 {[%clk 0:00:45.8]} 36. Bxb7
{[%clk 0:01:17.3]} 36... Qxb7 {[%clk 0:00:46.7]} 37. Qg2 {[%clk 0:01:14.9]}
37... hxg4 {[%clk 0:00:45.6]} 38. Qxb7+ {[%clk 0:01:14.6]} 38... Kxb7 {[%clk
0:00:44.6]} 39. Rxf7+ {[%clk 0:01:14.8]} 39... Rxf7 {[%clk 0:00:44.7]} 40. Rxf7+
{[%clk 0:01:15.7]} 40... Kc6 {[%clk 0:00:45.2]} 41. h4 {[%clk 0:01:16.1]} 41...
b4 {[%clk 0:00:45.5]} 42. cxb4 {[%clk 0:01:16.1]} 42... c3 {[%clk 0:00:45.7]}
43. h5 {[%clk 0:01:15.6]} 43... c2 {[%clk 0:00:46.2]} 44. Rf1 {[%clk 0:01:14.7]}
44... c1=Q {[%clk 0:00:35]} 45. Rxc1+ {[%clk 0:01:10.1]} 45... Nxc1 {[%clk
0:00:35.9]} 46. Kf2 {[%clk 0:01:05.9]} 46... Nd3+ {[%clk 0:00:19]} 47. Kg3
{[%clk 0:01:05.7]} 47... Nxb4 {[%clk 0:00:12.5]} 48. h6 {[%clk 0:01:02.9]} 48...
Kd5 {[%clk 0:00:13]} 49. h7 {[%clk 0:01:02.8]} 49... Kxd4 {[%clk 0:00:13.4]} 50.
h8=Q {[%clk 0:01:02.7]} 50... Nxa2 {[%clk 0:00:13.3]} 51. Qd8+ {[%clk
0:00:57.9]} 51... Ke4 {[%clk 0:00:13.8]} 52. Qa8+ {[%clk 0:00:57.6]} 52... Kf5
{[%clk 0:00:13.3]} 53. Qf8+ {[%clk 0:00:54.5]} 53... Ke4 {[%clk 0:00:12.8]} 54.
Qf4+ {[%clk 0:00:54.8]} 54... Kd5 {[%clk 0:00:13.2]} 55. Qd2+ {[%clk 0:00:55.4]}
55... Kxe5 {[%clk 0:00:13.7]} 56. Qxa2 {[%clk 0:00:56]} 1-0

[Event "Early-Titled-Tuesday-Blitz-October-24-2023"]
[Site "Chess.com"]
[Date "2023.10.24"]
[Round "4"]
[White "BeautiFullMindChess"]
[Black "Politov_Pavel"]
[Result "1-0"]
[WhiteElo "2261"]
[BlackElo "2046"]
[TimeControl "180+1"]
[EndTime "8:37:58 PDT"]
[Termination "BeautiFullMindChess won by checkmate"]

1. e4 {[%clk 0:02:55]} 1... c5 {[%clk 0:02:51.6]} 2. Nf3 {[%clk 0:02:54.5]} 2...
d6 {[%clk 0:02:51.3]} 3. d4 {[%clk 0:02:55.4]} 3... cxd4 {[%clk 0:02:52]} 4.
Nxd4 {[%clk 0:02:55.9]} 4... Nf6 {[%clk 0:02:51]} 5. Nc3 {[%clk 0:02:56.5]} 5...
a6 {[%clk 0:02:51.1]} 6. f3 {[%clk 0:02:55.6]} 6... e5 {[%clk 0:02:50.6]} 7. Nb3
{[%clk 0:02:54.7]} 7... Be7 {[%clk 0:02:50.3]} 8. Be3 {[%clk 0:02:53.9]} 8...
Be6 {[%clk 0:02:49]} 9. Qd2 {[%clk 0:02:53.8]} 9... O-O {[%clk 0:02:48.5]} 10.
O-O-O {[%clk 0:02:54.3]} 10... Nbd7 {[%clk 0:02:47.7]} 11. g4 {[%clk 0:02:55.2]}
11... b5 {[%clk 0:02:48.1]} 12. g5 {[%clk 0:02:50]} 12... Nh5 {[%clk 0:02:47.6]}
13. Ne2 {[%clk 0:02:35.8]} 13... Nb6 {[%clk 0:02:34.3]} 14. Ng3 {[%clk
0:02:34.9]} 14... Nf4 {[%clk 0:02:31.8]} 15. h4 {[%clk 0:02:33.7]} 15... Nc4
{[%clk 0:02:29.6]} 16. Bxc4 {[%clk 0:02:28.8]} 16... bxc4 {[%clk 0:02:23]} 17.
Na5 {[%clk 0:02:28.9]} 17... Qc7 {[%clk 0:02:18.6]} 18. Qc3 {[%clk 0:02:16.1]}
18... Rab8 {[%clk 0:02:06.8]} 19. Bxf4 {[%clk 0:02:10.8]} 19... exf4 {[%clk
0:02:05]} 20. Nf5 {[%clk 0:02:08.7]} 20... Bxf5 {[%clk 0:02:04]} 21. exf5 {[%clk
0:02:09.6]} 21... d5 {[%clk 0:02:03.1]} 22. Rxd5 {[%clk 0:02:04.2]} 22... Bb4
{[%clk 0:02:01.7]} 23. Qe5 {[%clk 0:01:18.6]} 23... Qxe5 {[%clk 0:01:19.3]} 24.
Rxe5 {[%clk 0:01:19.5]} 24... Rb5 {[%clk 0:01:19]} 25. Nxc4 {[%clk 0:01:13.3]}
25... Rd8 {[%clk 0:01:14.5]} 26. c3 {[%clk 0:00:53.3]} 26... Bc5 {[%clk
0:01:06.1]} 27. Rd1 {[%clk 0:00:49.5]} 27... Be3+ {[%clk 0:01:03.4]} 28. Kc2
{[%clk 0:00:42.4]} 28... Rdb8 {[%clk 0:00:38.3]} 29. Rxb5 {[%clk 0:00:30.5]}
29... axb5 {[%clk 0:00:37.9]} 30. Ne5 {[%clk 0:00:17]} 30... Ra8 {[%clk
0:00:23.7]} 31. a3 {[%clk 0:00:16]} 31... Kf8 {[%clk 0:00:22.8]} 32. Nc6 {[%clk
0:00:11.3]} 32... Ke8 {[%clk 0:00:19.5]} 33. Nb4 {[%clk 0:00:08.5]} 33... Rc8
{[%clk 0:00:15.1]} 34. Rd5 {[%clk 0:00:08.2]} 34... Rb8 {[%clk 0:00:11.8]} 35.
Nd3 {[%clk 0:00:07]} 35... Ke7 {[%clk 0:00:09.7]} 36. Nb4 {[%clk 0:00:05.9]}
36... Rb7 {[%clk 0:00:08]} 37. Nc6+ {[%clk 0:00:05.8]} 37... Ke8 {[%clk
0:00:06.9]} 38. Rd8# {[%clk 0:00:05.7]} 1-0